bitfinex/quotes_ETHUSD_20250725
["timestamp","ask_amount","ask_price","bid_price","bid_amount"]
[1753476691478,0.4545,3693.5,3693.1,2.70769995]
[1753476691793,1.2662,3693.4,3692.6,3.0]
[1753476692092,0.4545,3693.3,3692.8,2.70792208]
[1753476692582,0.4545,3693.2,3693.0,2.70776345]
[1753476692781,0.4545,3693.1,3693.0,2.70776345]
[1753476693213,0.8152,3693.8,3693.0,0.4527]
[1753476693345,0.4545,3694.1,3693.4,2.70753235]
[1753476693545,0.4545,3694.1,3693.6,2.70733625]
[1753476693749,0.8152,3694.2,3694.1,2.7070193]
[1753476694057,0.8152,3694.6,3693.6,0.02707385]
[1753476694260,0.9092,3694.1,3693.7,2.70729808]
[1753476694574,3.52185393,3694.6,3693.8,0.02707239]
[1753476694575,0.8152,3694.6,3693.8,0.02707239]
[1753476694777,0.4545,3695.0,3694.0,2.70709258]
[1753476694953,0.4545,3695.0,3694.2,2.70694602]
[1753476695148,0.4547,3694.9,3694.5,2.70670594]
[1753476695396,0.9092,3694.8,3694.3,2.70683314]
[1753476695706,0.9092,3694.7,3693.8,0.82]
[1753476695903,0.7885,3694.6,3694.0,2.70706879]
[1753476696108,0.4545,3695.1,3694.6,2.7065886]
[1753476696407,0.7885,3695.2,3694.7,0.02706579]
[1753476696545,1.2262,3695.6,3694.7,0.02706579]
[1753476696748,1.2262,3695.6,3695.3,2.70612852]
[1753476697015,0.7717,3696.1,3695.5,2.70594001]
[1753476697194,0.4545,3695.9,3695.6,2.70589444]
[1753476697581,0.4545,3695.9,3695.5,2.70596936]
[1753476697828,0.7717,3696.1,3695.3,0.0270614]
[1753476697979,0.7717,3696.1,3695.5,2.70599377]
[1753476698180,0.7717,3696.1,3695.6,2.70591198]
[1753476698519,0.4545,3696.0,3695.5,2.70597145]
[1753476698720,1.2264,3696.1,3695.5,2.70597145]
[1753476698903,0.4545,3695.9,3695.4,2.70605368]
[1753476699103,0.4547,3696.0,3695.2,3.15891124]
[1753476699286,0.7717,3696.1,3695.8,2.70577412]
[1753476699490,0.7717,3696.1,3695.9,2.70568659]
[1753476699687,0.7717,3696.1,3695.6,2.70589926]
[1753476699888,0.4545,3696.0,3695.6,2.70589926]
[1753476700226,0.4545,3695.9,3695.6,2.70589926]
[1753476700521,0.4545,3695.9,3695.5,2.70597944]
[1753476700689,0.9092,3695.8,3694.9,0.8132]
[1753476700889,3.1603985,3695.7,3695.0,2.70633107]
[1753476701143,2.70564658,3696.0,3695.3,2.70608394]
[1753476701280,0.4545,3695.7,3695.1,2.70626458]
[1753476701627,0.4545,3695.7,3694.4,3.68159292]
[1753476701628,1.2405,3695.6,3694.8,5.29446185]
[1753476701781,0.7858,3695.6,3694.8,2.70646185]
[1753476701976,0.9092,3695.5,3693.9,0.7672]
[1753476702177,0.7858,3695.3,3694.5,2.70668995]
[1753476702378,0.9092,3695.2,3694.6,2.588]
[1753476702777,3.6154333,3695.2,3694.6,2.588]
[1753476702973,0.4545,3695.1,3694.1,2.70697496]
[1753476703234,0.4545,3695.1,3694.4,2.70673531]
[1753476703430,0.4545,3695.1,3694.4,2.70679146]
[1753476703431,3.1608033,3695.1,3694.4,2.70679146]
[1753476703579,3.1608033,3695.1,3694.6,2.70659737]
[1753476703580,0.4545,3695.1,3694.6,2.70659737]
[1753476703788,0.4545,3695.1,3694.5,0.02706726]
[1753476703986,0.8314,3695.7,3694.6,1.2735]
[1753476704186,0.8314,3695.7,3694.7,0.4527]
[1753476704388,0.8314,3695.7,3695.3,2.70611248]
[1753476704811,0.8314,3695.7,3695.4,2.70602083]
[1753476705228,0.8314,3695.7,3695.5,2.70597478]
[1753476705514,0.8314,3695.7,3695.3,3.15882395]
[1753476705716,0.8314,3695.7,3695.4,2.70605968]
[1753476706059,0.8314,3695.7,3695.3,3.15882595]
[1753476706256,0.8314,3695.7,3695.6,0.1352]
[1753476706622,0.7692,3696.1,3695.6,0.1352]
[1753476706823,1.72091368,3696.1,3695.6,2.84112055]
[1753476707162,1.72091368,3696.1,3695.9,0.1352]
[1753476707367,3.6148277,3696.0,3695.9,0.1352]
[1753476707856,3.1603277,3696.0,3695.9,0.1352]
[1753476708159,3.6148277,3696.0,3695.9,0.1352]
[1753476709249,0.7779,3695.6,3694.9,2.70643183]
[1753476709452,0.7779,3695.6,3694.9,2.70636009]
[1753476709626,0.4545,3695.5,3694.7,3.0407]
[1753476709824,0.7933,3696.0,3694.8,0.47976506]
[1753476710058,0.7933,3696.0,3695.2,0.7532]
[1753476710241,0.002,3696.1,3695.9,0.1352]
[1753476710442,0.002,3696.1,3696.0,2.7056277]
[1753476711209,0.002,3696.1,3696.0,3.1870277]
[1753476711461,0.002,3696.1,3696.0,4.2331217]
[1753476711613,0.002,3696.1,3696.0,4.9900217]
[1753476712084,0.002,3696.1,3696.0,4.5467217]
[1753476712283,0.002,3696.1,3696.0,3.9439277]
[1753476712446,0.002,3696.1,3696.0,4.3872277]
[1753476714440,0.002,3696.1,3696.0,5.7740277]
[1753476714944,0.002,3696.1,3696.0,5.2926277]
[1753476716188,0.002,3696.1,3696.0,5.7740277]
[1753476716485,0.002,3696.1,3696.0,7.07882168]
[1753476720378,0.002,3696.1,3696.0,5.7740277]
[1753476720548,0.002,3696.1,3696.0,5.2926277]
[1753476721177,0.002,3696.1,3696.0,5.7740277]
[1753476721893,0.002,3696.1,3696.0,3.1870277]
[1753476722051,0.002,3696.1,3696.0,5.80008397]
[1753476722253,0.002,3696.1,3696.0,5.7730277]
[1753476722693,0.002,3696.1,3696.0,3.1870277]
[1753476722990,0.002,3696.1,3696.0,5.80008397]
[1753476723342,0.002,3696.1,3696.0,5.7730277]
[1753476728358,0.002,3696.1,3696.0,6.63442168]
[1753476729600,0.002,3696.9,3696.8,2.70504219]
[1753476729755,0.002,3696.9,3696.6,0.7954]
[1753476729955,0.8242,3696.7,3695.9,0.4814]
[1753476730157,0.9153,3696.6,3696.2,2.7054384]
[1753476730496,0.9153,3696.5,3696.3,2.585]
[1753476730787,0.8242,3696.7,3696.4,2.70533492]
[1753476731001,0.8242,3696.7,3696.6,2.70518855]
[1753476731298,0.002,3696.9,3696.8,2.70504219]
[1753476731603,0.002,3696.9,3696.8,5.29004219]
[1753476732294,0.002,3696.9,3696.8,5.77144219]
[1753476732593,0.002,3696.9,3696.8,6.66342894]
[1753476734402,0.002,3696.9,3696.8,2.70504219]
[1753476734581,1.7466,3696.9,3696.8,2.584]
[1753476735594,1.2748,3696.9,3696.8,2.584]
[1753476735795,0.002,3696.9,3696.8,5.28904219]
[1753476736108,0.002,3696.9,3696.8,2.584]
[1753476736805,0.9173,3696.9,3696.8,2.584]
[1753476737111,1.36263738,3696.9,3696.7,2.584]
[1753476737308,2.70702857,3696.9,3696.5,2.584]
[1753476737614,3.62035294,3696.8,3696.5,2.584]
[1753476737794,0.002,3696.9,3695.7,0.8259]
[1753476737795,2.70518855,3696.6,3695.7,0.8259]
[1753476738112,3.46773695,3696.4,3695.4,2.70599849]
[1753476738278,3.46773695,3696.4,3695.5,5.28998398]
[1753476738279,2.70553475,3696.2,3695.5,5.28998398]
[1753476738513,0.9153,3696.1,3695.2,0.4814]
[1753476738696,2.7056277,3696.0,3695.3,5.29011422]
[1753476738895,0.9153,3696.1,3695.6,2.70591472]
[1753476739135,0.7624,3696.4,3695.7,2.61105847]
[1753476739302,0.7624,3696.4,3695.8,2.584]
[1753476739504,0.7624,3696.4,3695.2,2.70621346]
[1753476739505,2.70559962,3696.1,3695.2,2.70621346]
[1753476739804,0.4435,3696.0,3695.3,2.583]
[1753476740116,0.4547,3696.2,3696.0,0.1352]
[1753476740318,0.4547,3696.1,3695.9,0.1352]
[1753476740654,0.8142,3696.7,3696.3,2.70537208]
[1753476740795,0.002,3696.9,3696.5,2.70521084]
[1753476741101,0.002,3696.9,3696.6,0.1352]
[1753476741304,0.002,3696.9,3696.8,0.1352]
[1753476741547,0.002,3696.9,3696.8,2.84024219]
[1753476743022,0.002,3696.9,3696.8,3.33059261]
[1753476743528,0.002,3696.9,3696.8,3.1815]
[1753476743829,0.002,3696.9,3696.8,2.7182]
[1753476744135,0.002,3696.9,3696.8,5.42324219]
[1753476744434,0.002,3696.9,3696.8,2.7182]
[1753476744928,0.002,3696.9,3696.8,0.1352]
[1753476745224,0.002,3696.9,3696.8,2.7182]
[1753476745432,0.002,3696.9,3696.8,5.42324219]
[1753476745793,0.002,3696.9,3696.8,6.74571318]
[1753476747096,0.002,3696.9,3696.8,7.19411318]
[1753476747293,0.002,3696.9,3696.8,5.36271318]
[1753476747497,0.002,3696.9,3696.8,7.49731318]
[1753476747736,0.002,3696.9,3696.8,6.74571318]
[1753476748100,0.002,3696.9,3696.8,4.04067099]
[1753476748321,0.002,3696.9,3696.8,2.7182]
[1753476748530,0.002,3696.9,3696.8,0.1352]
[1753476748843,0.9121,3696.9,3696.8,2.7172]
[1753476749051,0.9121,3696.9,3696.8,0.1352]
[1753476749264,0.9121,3696.9,3695.5,2.70595569]
[1753476749265,2.70504219,3696.8,3696.7,2.582]
[1753476749412,3.71617688,3696.8,3696.7,2.7172]
[1753476749613,7.62627688,3696.8,3696.7,0.1352]
[1753476749841,8.41557688,3696.8,3696.7,0.1352]
[1753476750048,3.7893,3696.2,3695.3,3.17041437]
[1753476750210,2.70567614,3696.0,3695.4,2.582]
[1753476750642,2.70567614,3696.0,3695.9,0.1352]
[1753476750950,0.4547,3696.0,3695.9,0.1352]
[1753476752344,3.1603277,3696.0,3695.9,0.1352]
[1753476753240,4.28515238,3696.0,3695.9,0.1352]
[1753476753555,6.495367,3695.4,3695.3,0.001]
[1753476754016,7.405467,3695.4,3695.3,0.001]
[1753476754641,37.955467,3695.4,3695.3,0.001]
[1753476754831,39.10180169,3695.4,3695.3,0.001]
[1753476755015,39.10180169,3695.4,3695.3,1e-08]
[1753476756214,6.950067,3695.4,3695.3,1e-08]
[1753476756622,7.405467,3695.4,3695.3,1e-08]
[1753476757268,7.540667,3695.4,3695.3,1e-08]
[1753476757421,8.090667,3695.4,3695.3,1e-08]
[1753476757934,38.090667,3695.4,3695.3,1e-08]
[1753476759132,10.672667,3695.4,3695.3,1e-08]
[1753476759332,9.212567,3695.4,3695.3,1e-08]
[1753476759549,9.532067,3695.4,3695.3,1e-08]
[1753476760450,6.3713,3695.4,3695.3,1e-08]
[1753476760656,9.077367,3695.4,3695.3,1e-08]
[1753476760965,2.582,3695.4,3695.3,0.59850001]
[1753476761753,10.38276472,3695.4,3695.3,0.13520001]
[1753476761929,10.97336472,3695.4,3695.3,1e-08]
[1753476763657,11.52336472,3695.4,3695.3,1e-08]
[1753476764623,41.52336472,3695.4,3695.3,1e-08]
[1753476765918,48.58336472,3695.4,3695.3,1e-08]
[1753476768657,18.58336472,3695.4,3695.3,1e-08]
[1753476768861,48.58336472,3695.4,3695.3,1e-08]
[1753476769224,50.21136472,3695.4,3695.3,1e-08]
[1753476770346,47.57796472,3695.4,3695.3,1e-08]
[1753476770546,58.5631171,3695.4,3695.3,1e-08]
[1753476770730,59.1131171,3695.4,3695.3,1e-08]
[1753476770926,56.9853171,3695.4,3695.3,1e-08]
[1753476771845,48.12796472,3695.4,3695.3,1e-08]
[1753476772838,48.62776472,3695.4,3695.3,1e-08]
[1753476774063,59.1131171,3695.4,3695.3,1e-08]
[1753476774959,73.6131171,3695.4,3695.3,1e-08]
[1753476775432,3.25657969,3694.7,3694.6,0.001]
[1753476775632,36.25665295,3694.6,3694.5,1e-08]
[1753476775831,37.97615295,3694.6,3694.5,1e-08]
[1753476776084,37.97615295,3694.6,3693.7,0.4953]
[1753476776085,6.49133915,3693.8,3693.7,0.4953]
[1753476776364,6.49133915,3693.8,3693.4,0.4454]
[1753476776365,6.5013,3693.8,3693.4,0.9407]
[1753476776529,6.5013,3693.8,3693.3,0.1352]
[1753476776734,2.70738574,3693.6,3693.5,0.4454]
[1753476776967,2.70738574,3693.6,3693.3,0.1352]
[1753476777182,5.28847217,3693.5,3693.3,0.1352]
[1753476777585,2.70753235,3693.4,3693.3,0.1352]
[1753476778274,2.581,3693.5,3693.3,1.0759]
[1753476778501,2.581,3693.5,3693.3,0.1352]
[1753476778637,5.581,3693.5,3693.4,0.9407]
[1753476779876,2.581,3693.6,3693.4,1.7073]
[1753476780074,2.581,3693.6,3693.5,0.9407]
[1753476780272,2.581,3693.6,3693.5,1.0759]
[1753476780695,0.1352,3694.3,3693.5,1.0759]
[1753476780996,0.1352,3694.3,3693.4,3.474112]
[1753476780997,5.70704237,3694.1,3693.8,0.1352]
[1753476781191,2.70716586,3693.9,3693.8,0.6305]
[1753476781488,5.7162,3694.0,3693.9,0.4953]
[1753476781813,2.581,3694.0,3693.9,0.9407]
[1753476782514,2.70638088,3695.0,3694.1,2.70696506]
[1753476782673,2.70636491,3695.0,3694.2,1.38181651]
[1753476782875,2.70659461,3694.7,3694.5,0.1352]
[1753476783101,2.581,3694.6,3694.5,0.1352]
[1753476783303,2.581,3694.6,3694.5,0.5806]
[1753476783691,2.581,3694.6,3694.5,1.0759]
[1753476785292,2.581,3694.6,3694.5,0.6305]
[1753476785492,2.581,3694.6,3694.5,1.0759]
[1753476786412,7.1952,3695.4,3694.5,1.845]
[1753476786602,2.70575063,3695.9,3695.3,0.1352]
[1753476786917,2.58,3695.8,3695.4,0.9407]
[1753476787214,2.58,3695.8,3695.3,0.1352]
[1753476787215,5.70592055,3695.6,3695.5,0.4953]
[1753476787433,2.706067,3695.4,3695.3,0.1352]
[1753476787632,2.58,3695.4,3695.3,0.1352]
[1753476788232,2.58,3695.4,3695.3,0.6305]
[1753476788828,2.58,3695.4,3695.3,1.0759]
[1753476789124,2.58,3695.4,3695.3,1.53103023]
[1753476789338,2.58,3695.6,3695.3,1.0759]
[1753476789497,2.58,3695.6,3695.3,2.84134023]
[1753476789695,2.58,3695.6,3695.5,0.1352]
[1753476790200,2.58,3695.6,3695.5,1.0759]
[1753476790402,2.58,3695.6,3695.5,0.6305]
[1753476790717,2.58,3695.6,3695.4,0.1352]
[1753476791315,5.28592505,3695.6,3695.4,0.1352]
[1753476791514,5.28592505,3695.6,3695.4,0.6305]
[1753476791831,0.1352,3695.9,3695.5,0.9407]
[1753476792136,0.002,3696.2,3695.6,1.7234]
[1753476792137,2.579,3695.8,3695.6,1.7234]
[1753476792344,2.579,3695.8,3695.7,0.9407]
[1753476792507,2.579,3695.8,3695.7,1.0759]
[1753476793243,0.002,3696.2,3695.9,0.7953]
[1753476793569,0.002,3696.2,3696.0,0.9407]
[1753476793921,0.002,3696.2,3696.1,0.9407]
[1753476795327,0.002,3696.2,3695.9,0.7953]
[1753476795526,0.002,3696.2,3696.1,0.4953]
[1753476796425,0.002,3696.2,3695.9,0.7953]
[1753476796626,0.002,3696.2,3696.0,0.9407]
[1753476796948,0.002,3696.2,3696.1,2.7055545]
[1753476797266,0.002,3696.2,3696.1,3.6462545]
[1753476797559,0.002,3696.2,3696.1,4.4389545]
[1753476799552,0.002,3696.2,3696.1,1.7334]
[1753476800058,0.002,3696.2,3696.1,4.4389545]
[1753476800460,2.7074813,3696.2,3696.1,0.7927]
[1753476800634,3.24876441,3696.2,3696.1,0.7927]
[1753476800842,3.24876441,3696.2,3695.8,1.2315]
[1753476801042,0.54328311,3696.2,3695.8,1.2315]
[1753476801223,2.70570091,3695.9,3695.5,1.2194]
[1753476801424,2.70589318,3695.7,3695.5,0.7546]
[1753476801626,2.70597028,3695.6,3695.1,1.7479]
[1753476801923,2.70596615,3695.6,3695.2,0.4769]
[1753476802122,2.70596615,3695.6,3695.2,0.9417]
[1753476802365,3.247021,3695.7,3695.3,0.4769]
[1753476802855,2.70593412,3695.6,3695.3,0.4769]
[1753476803033,6.24703361,3695.7,3695.6,0.1352]
[1753476803234,6.24703361,3695.7,3695.3,0.4769]
[1753476803235,3.24703361,3695.7,3695.5,0.1352]
[1753476803874,3.54115912,3695.7,3695.5,0.1352]
[1753476804038,3.24701295,3695.7,3695.5,0.6121]
[1753476804666,2.70592055,3695.6,3695.5,0.6121]
[1753476804965,0.54115912,3695.7,3695.5,0.6121]
[1753476805172,3.54115912,3695.7,3695.5,0.6121]
[1753476805371,3.24700649,3695.7,3695.5,0.6121]
[1753476805577,2.70592055,3695.6,3695.5,0.1352]
[1753476806080,3.24702839,3695.7,3695.5,0.1352]
[1753476806570,2.70592055,3695.6,3695.5,0.1352]
[1753476807362,0.54115912,3695.7,3695.5,0.1352]
[1753476807572,3.0,3695.5,3694.7,1.3043]
[1753476807773,3.0,3695.5,3695.4,0.1352]
[1753476808073,3.4324,3695.5,3695.4,0.1352]
[1753476808548,0.54115912,3695.7,3695.4,0.1352]
[1753476808868,2.577,3696.0,3695.5,4.45722093]
[1753476809169,2.577,3696.0,3695.6,0.1352]
[1753476809170,3.13810091,3695.9,3695.6,0.1352]
[1753476809331,2.70593472,3695.6,3695.4,0.1352]
[1753476809536,2.70586345,3695.7,3695.4,0.1352]
[1753476809737,2.577,3695.6,3695.4,0.1352]
[1753476810441,1.28206987,3695.7,3695.4,0.1352]
[1753476810770,0.4993,3696.1,3695.4,0.1352]
[1753476810771,2.578,3696.2,3695.7,0.7956]
[1753476810972,2.578,3696.2,3695.8,0.9417]
[1753476811173,2.578,3696.2,3696.1,0.1352]
[1753476811346,2.578,3696.2,3696.1,0.6121]
[1753476811546,0.002,3696.2,3696.1,0.6121]
[1753476811780,0.002,3696.2,3696.1,3.3176545]
[1753476811997,0.002,3696.2,3696.1,0.1352]
[1753476812157,3.1398813,3696.2,3695.4,1.296]
[1753476812361,0.002,3696.2,3696.0,0.1352]
[1753476813607,6.1379545,3696.1,3696.0,0.1352]
[1753476813886,2.70571624,3695.9,3695.8,0.1352]
[1753476814086,3.4324,3696.0,3695.8,0.1352]
[1753476814248,1.44777242,3696.0,3695.8,0.1352]
[1753476814452,4.44777242,3696.0,3695.8,0.1352]
[1753476814772,4.01537242,3696.0,3695.8,0.1352]
[1753476815686,3.0,3696.0,3695.8,0.1352]
[1753476815886,0.002,3696.2,3695.9,9.79905238]
[1753476816180,0.002,3696.2,3696.1,2.7055545]
[1753476816552,0.002,3696.2,3696.1,0.9417]
[1753476816753,0.002,3696.2,3696.1,0.4769]
[1753476817152,0.002,3696.2,3696.0,0.8272]
[1753476817572,0.002,3696.2,3695.5,0.801]
[1753476817573,0.4324,3696.1,3695.5,0.801]
[1753476817926,1.08283181,3696.1,3695.5,0.801]
[1753476818120,1.08283181,3696.1,3695.5,3.50698493]
[1753476818275,1.08283181,3696.1,3695.5,0.801]
[1753476818468,1.08283181,3696.1,3695.5,3.50698577]
[1753476818874,1.08283181,3696.1,3695.5,0.801]
[1753476820084,0.002,3696.2,3695.5,3.50697]
[1753476820596,2.70749419,3696.2,3695.5,0.801]
[1753476820799,2.70557927,3696.1,3695.5,0.801]
[1753476821011,2.70586269,3695.7,3695.1,0.8238]
[1753476821185,3.0,3696.0,3695.1,0.8238]
[1753476821391,2.70586815,3695.7,3695.1,0.8238]
[1753476821591,1.2644,3695.7,3694.9,3.0519]
[1753476821909,1.2644,3695.7,3694.9,3.18333131]
[1753476822077,1.2644,3695.7,3695.0,2.70635994]
[1753476822275,1.2644,3695.7,3695.0,0.4769]
[1753476822815,2.33732937,3695.7,3695.0,0.4769]
[1753476823178,1.2644,3695.7,3695.0,0.4769]
[1753476823383,2.70596535,3695.6,3695.0,0.4769]
[1753476823584,2.70602833,3695.5,3695.0,0.4769]
[1753476823806,0.4324,3695.4,3695.0,0.4769]
[1753476824509,0.4324,3695.3,3694.8,0.8238]
[1753476824709,0.73304,3695.3,3694.5,0.4779]
[1753476824929,0.4324,3695.3,3694.8,2.70647495]
[1753476825304,0.4324,3695.3,3694.8,0.4769]
[1753476826006,0.4324,3695.2,3695.0,0.1352]
[1753476826356,0.4324,3696.7,3695.9,2.70569938]
[1753476826638,3.0,3696.4,3695.6,3.4677088]
[1753476827334,3.0,3696.4,3695.7,3.18269931]
[1753476827554,0.60284,3696.2,3695.6,0.7618]
[1753476827702,0.4324,3696.1,3695.3,0.7618]
[1753476827903,3.93026441,3696.1,3695.3,3.46788414]
[1753476828309,3.93026441,3696.1,3695.4,2.70605826]
[1753476828511,3.93026441,3696.1,3695.3,0.7618]
[1753476828512,3.93026441,3696.1,3695.3,3.46791426]
[1753476828713,1.86608248,3696.1,3695.3,0.7618]
[1753476828919,0.002,3696.2,3695.4,0.9417]
[1753476829138,0.002,3696.2,3695.7,2.70579871]
[1753476829750,0.002,3696.2,3695.8,0.9417]
[1753476830105,0.002,3696.2,3695.9,0.4702]
[1753476830517,0.002,3696.1,3695.9,0.4702]
[1753476830721,0.4718,3696.0,3695.4,0.4702]
[1753476831009,0.002,3696.1,3695.4,0.9238]
[1753476831449,2.7075752,3696.1,3695.4,0.9238]
[1753476831651,0.77519473,3696.1,3695.4,3.62986098]
[1753476831928,0.77519473,3696.1,3695.5,2.70599377]
[1753476832120,0.77519473,3696.1,3695.5,0.4702]
[1753476832121,0.002,3696.1,3695.5,0.4702]
[1753476833040,2.70570039,3696.0,3695.5,0.4702]
[1753476833368,2.70756958,3696.1,3695.5,0.4702]
[1753476833657,0.4718,3696.0,3695.5,0.4702]
[1753476834218,3.1774429,3696.0,3695.5,0.4702]
[1753476834420,0.78994429,3695.9,3695.3,0.7618]
[1753476834642,0.8101,3695.8,3695.0,0.8097]
[1753476834825,0.4718,3695.7,3695.0,0.8097]
[1753476835027,0.4718,3695.7,3695.1,2.70628667]
[1753476835239,2.70592055,3695.6,3695.0,0.8097]
[1753476835632,1.00577052,3695.6,3694.9,0.4702]
[1753476835838,0.4718,3695.5,3694.8,2.70644016]
[1753476836034,0.4718,3695.5,3694.7,0.8097]
[1753476836240,0.4718,3695.5,3695.2,0.1352]
[1753476836441,3.17779969,3695.5,3695.2,0.1352]
[1753476836746,3.98211901,3695.4,3694.8,0.4702]
[1753476837145,1.27599997,3695.4,3695.0,0.1352]
[1753476837347,0.80309997,3695.4,3695.0,0.1352]
[1753476837850,3.03738753,3695.4,3695.0,0.1352]
[1753476838045,0.4718,3695.3,3695.0,0.1352]
[1753476838250,0.4718,3695.2,3695.0,0.1352]
[1753476839115,0.39820875,3695.2,3694.5,2.70771031]
[1753476839316,0.1352,3695.3,3694.8,0.1352]
[1753476839516,3.31314102,3695.3,3694.8,0.6054]
[1753476839713,2.70625072,3695.2,3694.8,0.6054]
[1753476839946,2.70630184,3695.1,3694.8,0.6054]
[1753476840125,0.33133018,3695.0,3694.8,0.1352]
[1753476840315,2.70631809,3695.1,3694.8,0.1352]
[1753476840525,0.1352,3695.3,3694.8,0.1352]
[1753476840727,0.7652,3695.2,3694.7,0.1352]
[1753476840921,3.47142506,3695.2,3694.8,0.4702]
[1753476841115,1.2381,3696.4,3694.9,1.6877]
[1753476841341,2.70564116,3696.0,3695.3,2.70612772]
[1753476841552,2.572,3696.3,3695.4,1.6877]
[1753476841751,3.0,3696.0,3695.4,1.6877]
[1753476842654,2.70583275,3695.8,3695.0,2.70630355]
[1753476842822,1.237,3695.7,3694.7,0.4702]
[1753476843152,2.70638305,3695.0,3694.3,1.2341]
[1753476843354,3.0,3695.3,3694.3,1.2341]
[1753476843555,0.65148193,3695.6,3694.9,2.70641642]
[1753476843764,1.237,3696.4,3695.3,0.7639]
[1753476844272,2.70592761,3695.6,3695.0,1.2341]
[1753476844567,0.61768928,3695.6,3694.6,0.4536]
[1753476844770,0.61768928,3695.6,3694.7,0.4702]
[1753476844968,3.0,3695.9,3695.4,3.46991446]
[1753476845265,3.0,3695.9,3695.5,0.4702]
[1753476845458,3.0,3695.9,3695.4,1.2175]
[1753476845630,3.17758766,3695.8,3695.0,3.15994441]
[1753476845838,0.4718,3695.8,3695.1,3.48177691]
[1753476846272,0.4718,3695.8,3695.2,2.70621346]
[1753476846462,1.12367,3695.8,3695.1,0.7755]
[1753476846778,3.82945825,3695.8,3695.2,0.4702]
[1753476847640,1.12367,3695.8,3695.2,0.4702]
[1753476848345,3.82945007,3695.8,3695.2,0.4702]
[1753476848956,0.65187,3695.8,3694.8,1.2767]
[1753476849161,2.70593879,3695.6,3694.8,1.2767]
[1753476849379,2.571,3695.5,3694.8,1.2767]
[1753476849696,2.78208937,3695.7,3694.8,1.2767]
[1753476850192,2.78208937,3695.7,3694.9,2.70643196]
[1753476850193,5.48794201,3695.7,3694.9,2.70643196]
[1753476850376,2.78208937,3695.7,3694.9,2.70643196]
[1753476850569,0.65187,3695.6,3694.9,2.70643196]
[1753476850889,0.65187,3695.6,3694.8,1.2767]
[1753476850890,2.571,3695.5,3694.8,1.2767]
[1753476851190,2.571,3695.9,3695.5,0.1352]
[1753476851401,2.571,3695.9,3695.4,0.1352]
[1753476851602,2.571,3695.9,3695.6,0.1352]
[1753476852501,0.002,3695.9,3695.8,2.84097412]
[1753476852663,0.002,3695.9,3695.8,0.1352]
[1753476852870,0.002,3695.9,3695.8,3.76477412]
[1753476853199,0.002,3695.9,3695.8,1.059]
[1753476853386,0.002,3695.9,3695.8,0.6054]
[1753476854824,0.002,3695.9,3695.8,3.31117412]
[1753476855121,0.002,3695.9,3695.8,1.059]
[1753476855295,0.002,3695.9,3695.8,3.76477412]
[1753476855479,0.002,3695.9,3695.8,2.2176388]
[1753476855680,0.002,3695.9,3695.8,0.1352]
[1753476855886,0.002,3695.9,3694.9,0.4702]
[1753476855887,0.7998,3695.8,3694.9,0.4702]
[1753476856106,2.70602397,3695.5,3695.1,0.1352]
[1753476856309,3.65076898,3695.4,3695.1,0.1352]
[1753476856520,0.4718,3695.3,3695.1,0.1352]
[1753476857097,0.1352,3695.6,3695.1,0.6054]
[1753476857295,0.66825748,3695.5,3695.1,0.6054]
[1753476857521,0.66825748,3695.5,3695.1,0.1352]
[1753476857826,0.4718,3695.4,3695.1,0.1352]
[1753476858844,0.1352,3695.6,3695.2,0.4702]
[1753476859059,3.3698,3695.8,3695.3,0.6054]
[1753476859213,3.9447,3695.7,3695.3,0.1352]
[1753476859408,2.706067,3695.4,3695.1,0.1352]
[1753476859931,0.4718,3695.3,3695.1,0.1352]
[1753476860330,0.4608,3695.2,3694.9,0.1352]
[1753476860716,0.4608,3695.1,3694.5,9.32855238]
[1753476860940,3.9875957,3695.1,3694.7,0.1352]
[1753476861145,4.54409527,3695.1,3694.7,0.1352]
[1753476861441,3.16716025,3695.0,3694.7,0.1352]
[1753476861631,3.64736025,3695.0,3694.6,0.1352]
[1753476861827,3.18656025,3695.0,3694.6,0.1352]
[1753476862005,0.4608,3694.9,3694.6,0.1352]
[1753476862210,0.4802,3695.0,3694.6,0.1352]
[1753476862211,0.4608,3694.8,3694.6,0.1352]
[1753476862405,2.70665295,3694.6,3694.5,0.001]
[1753476862747,7.21235295,3694.6,3694.5,0.001]
[1753476862905,8.15335295,3694.6,3694.5,0.001]
[1753476863709,9.78235295,3694.6,3694.5,0.001]
[1753476864112,10.24315295,3694.6,3694.5,0.001]
[1753476864361,11.84187175,3694.6,3694.5,0.001]
[1753476865460,9.27187175,3694.6,3694.5,0.001]
[1753476865661,10.81167175,3694.6,3694.5,0.001]
[1753476866016,11.29187175,3694.6,3694.5,0.001]
[1753476867074,11.84187175,3694.6,3694.5,0.001]
[1753476867668,41.84187175,3694.6,3694.5,1e-08]
[1753476868579,43.46987175,3694.6,3694.5,1e-08]
[1753476868858,13.46987175,3694.6,3694.5,1e-08]
[1753476869062,43.46987175,3694.6,3694.5,1e-08]
[1753476871871,4.06047897,3693.2,3693.0,0.001]
[1753476872074,6.25775229,3693.1,3693.0,0.001]
[1753476872275,38.00155229,3693.1,3693.0,0.001]
[1753476873173,39.62955229,3693.1,3693.0,1e-08]
[1753476873374,39.12007109,3693.1,3693.0,1e-08]
[1753476874706,9.12007109,3693.1,3693.0,1e-08]
[1753476874906,9.12007109,3693.1,3691.7,0.001]
[1753476874907,4.06209287,3691.0,3690.1,0.4582]
[1753476875053,9.63209287,3691.0,3690.7,0.4572]
[1753476875252,9.63209287,3691.0,3690.5,0.4494]
[1753476875253,9.63209287,3691.0,3690.9,0.4582]
[1753476875785,10.65493344,3691.0,3690.9,0.001]
[1753476876151,10.79249004,3691.0,3690.9,0.001]